bitfinex/quotes_BTCUSD_20250102
["timestamp","ask_amount","ask_price","bid_price","bid_amount"]
[1735837810019,0.20547,97338.0,97319.0,0.21298632]
[1735837810020,0.205479,97334.0,97319.0,0.21298632]
[1735837811053,0.20547,97338.0,97319.0,0.21298632]
[1735837811878,8.55e-05,97347.0,97319.0,0.21298632]
[1735837812114,0.0483855,97347.0,97319.0,0.20998632]
[1735837812295,8.55e-05,97347.0,97319.0,0.35998632]
[1735837812813,8.55e-05,97347.0,97319.0,1.85998632]
[1735837813434,8.55e-05,97347.0,97319.0,1.85898632]
[1735837813584,0.205454,97345.0,97319.0,1.85898632]
[1735837813788,8.55e-05,97347.0,97319.0,1.99098632]
[1735837813990,5e-07,97320.0,97319.0,3.14034832]
[1735837814192,8.55e-05,97347.0,97346.0,0.2301]
[1735837814404,0.00020667,97347.0,97346.0,0.48408632]
[1735837815068,0.00020667,97347.0,97346.0,2.10708632]
[1735837815269,0.00020667,97347.0,97346.0,2.39774602]
[1735837815662,0.00020667,97347.0,97346.0,2.34448632]
[1735837815909,0.00020667,97347.0,97346.0,2.20708632]
[1735837816082,0.00020667,97347.0,97346.0,2.10708632]
[1735837816286,0.00020667,97347.0,97346.0,2.20708632]
[1735837816494,0.00020667,97347.0,97346.0,2.40679042]
[1735837816644,8.55e-05,97352.0,97351.0,0.1]
[1735837816857,0.00057662,97352.0,97351.0,0.37698632]
[1735837817279,0.00057662,97352.0,97351.0,1.87698632]
[1735837817660,0.00057662,97352.0,97351.0,1.87598632]
[1735837818056,7.602e-05,97362.0,97361.0,0.305421]
[1735837818284,7.602e-05,97362.0,97361.0,0.43240732]
[1735837818662,7.602e-05,97362.0,97361.0,1.93240732]
[1735837819061,7.602e-05,97362.0,97361.0,2.18140732]
[1735837819851,7.602e-05,97362.0,97361.0,2.08240732]
[1735837820501,7.602e-05,97362.0,97361.0,2.08540732]
[1735837820711,7.602e-05,97362.0,97361.0,2.09240732]
[1735837820942,7.602e-05,97362.0,97361.0,2.08240732]
[1735837821337,7.602e-05,97362.0,97361.0,2.08440732]
[1735837821532,7.602e-05,97362.0,97361.0,2.08340732]
[1735837821761,7.602e-05,97362.0,97361.0,2.08240732]
[1735837821962,7.602e-05,97362.0,97361.0,2.09140732]
[1735837823159,7.602e-05,97362.0,97361.0,2.09640732]
[1735837825109,7.602e-05,97362.0,97361.0,2.10671425]
[1735837826537,7.602e-05,97362.0,97361.0,0.22829325]
[1735837826990,7.602e-05,97362.0,97361.0,0.114]
[1735837827200,0.00490635,97362.0,97361.0,0.114]
[1735837827413,0.00107602,97362.0,97361.0,0.114]
[1735837827611,0.00490635,97362.0,97361.0,0.114]
[1735837827816,0.00107602,97362.0,97361.0,0.114]
[1735837828015,0.00490635,97362.0,97361.0,0.109]
[1735837828313,0.00490635,97362.0,97361.0,0.1]
[1735837830539,0.00490635,97362.0,97346.0,0.1001708]
[1735837830540,0.20545,97347.0,97346.0,0.1001708]
[1735837830973,0.20927679,97347.0,97346.0,0.1001708]
[1735837831189,0.20927679,97347.0,97346.0,0.0001708]
[1735837831396,0.21027679,97347.0,97346.0,0.0001708]
[1735837831597,0.21027679,97347.0,97346.0,0.1001708]
[1735837831797,0.21027679,97347.0,97346.0,0.1091708]
[1735837832383,0.21027679,97347.0,97346.0,0.1031708]
[1735837832939,0.20927679,97347.0,97346.0,0.20715712]
[1735837833147,0.00382679,97347.0,97346.0,0.20415712]
[1735837833352,0.00382679,97347.0,97346.0,0.1001708]
[1735837833602,0.00382679,97347.0,97346.0,0.1021708]
[1735837833603,0.20545,97347.0,97346.0,0.1021708]
[1735837833813,0.2093419,97347.0,97346.0,0.1071708]
[1735837835275,0.2103419,97347.0,97346.0,0.0071708]
[1735837835896,0.3379419,97347.0,97346.0,0.0071708]
[1735837836093,0.60264067,97347.0,97346.0,8e-07]
[1735837836303,0.60264067,97347.0,97310.0,0.1]
[1735837836304,0.205526,97311.0,97310.0,0.1]
[1735837836504,0.205526,97311.0,97310.0,0.10049112]
[1735837836709,0.20941199,97311.0,97310.0,0.10049112]
[1735837836970,0.21041199,97311.0,97310.0,0.00049112]
[1735837837734,0.21041199,97311.0,97310.0,0.00949112]
[1735837838157,0.21041199,97311.0,97310.0,0.01449112]
[1735837838432,0.21041199,97311.0,97310.0,0.00549112]
[1735837838639,0.21041199,97311.0,97310.0,0.00749112]
[1735837839250,0.21041199,97311.0,97310.0,0.00249112]
[1735837839647,0.21041199,97311.0,97310.0,0.00349112]
[1735837846425,0.20941199,97311.0,97310.0,0.00349112]
[1735837846635,0.20941199,97311.0,97310.0,0.10349112]
[1735837846834,0.21041199,97311.0,97310.0,0.10349112]
[1735837847290,0.21041199,97311.0,97310.0,1.60349112]
[1735837847550,0.20941199,97311.0,97310.0,0.10349112]
[1735837847727,0.21041199,97311.0,97310.0,0.10349112]
[1735837847925,0.20941199,97311.0,97310.0,0.10349112]
[1735837848138,0.21041199,97311.0,97310.0,0.10349112]
[1735837848537,0.20941199,97311.0,97310.0,0.10349112]
[1735837848740,0.21041199,97311.0,97310.0,0.10349112]
[1735837849159,0.20941199,97311.0,97310.0,0.10349112]
[1735837850199,0.00388599,97311.0,97310.0,0.20747744]
[1735837850409,0.00388599,97311.0,97310.0,0.41317624]
[1735837850611,0.411006,97322.0,97321.0,0.1]
[1735837850820,0.205503,97322.0,97321.0,0.1]
[1735837851020,0.20935346,97322.0,97321.0,0.1]
[1735837851365,0.00385046,97322.0,97321.0,0.1]
[1735837851799,0.004,97322.0,97321.0,0.1]
[1735837852007,0.00785046,97322.0,97321.0,0.20398632]
[1735837852415,0.004,97322.0,97321.0,0.20398632]
[1735837852611,0.004,97322.0,97321.0,1.70398632]
[1735837852819,0.005,97322.0,97321.0,0.20398632]
[1735837853080,0.001,97322.0,97321.0,0.20398632]
[1735837853282,0.001,97322.0,97321.0,1.71836041]
[1735837853459,0.205476,97335.0,97321.0,1.71836041]
[1735837853654,0.205476,97335.0,97322.0,0.10398632]
[1735837853860,0.205476,97335.0,97334.0,0.1]
[1735837854598,0.01054552,97350.0,97334.0,0.20398632]
[1735837854599,0.205451,97347.0,97334.0,0.20398632]
[1735837854959,0.206464,97341.0,97334.0,0.20598632]
[1735837855163,0.205464,97341.0,97334.0,0.20598632]
[1735837855379,0.206464,97341.0,97334.0,0.20598632]
[1735837855581,0.205464,97341.0,97334.0,0.20598632]
[1735837855787,0.206464,97341.0,97334.0,0.20598632]
[1735837855991,0.205464,97341.0,97334.0,0.20598632]
[1735837856413,0.205465,97341.0,97334.0,0.20398632]
[1735837856617,0.206465,97341.0,97334.0,0.20398632]
[1735837856823,0.205467,97339.0,97334.0,0.20398632]
[1735837857021,0.205467,97339.0,97334.0,0.20498632]
[1735837857224,0.00387874,97338.0,97334.0,0.20498632]
[1735837857497,0.205471,97337.0,97334.0,0.20498632]
[1735837857750,0.410943,97337.0,97334.0,0.20398632]
[1735837857933,0.001,97335.0,97334.0,0.1]
[1735837858422,0.00487831,97335.0,97334.0,0.103]
[1735837858862,0.00387831,97335.0,97334.0,0.103]
[1735837859044,0.00487831,97335.0,97334.0,0.103]
[1735837859250,0.001,97335.0,97334.0,0.103]
[1735837859448,0.00487831,97335.0,97334.0,0.103]
[1735837859623,0.001,97335.0,97334.0,0.1]
[1735837859819,0.00487831,97335.0,97334.0,0.1]
[1735837860077,0.001,97335.0,97334.0,0.106]
[1735837860227,0.001,97335.0,97334.0,0.102]
[1735837860631,0.001,97335.0,97334.0,0.104]
[1735837860830,0.001,97335.0,97334.0,0.106]
[1735837861076,0.00487831,97335.0,97334.0,0.006]
[1735837861221,0.001,97335.0,97334.0,0.006]
[1735837861414,0.00487831,97335.0,97334.0,0.006]
[1735837861616,0.001,97335.0,97334.0,0.006]
[1735837861811,0.00487831,97335.0,97334.0,0.006]
[1735837862074,0.001,97335.0,97334.0,0.006]
[1735837862298,0.00487831,97335.0,97334.0,0.006]
[1735837863176,0.00387831,97335.0,97334.0,0.106]
[1735837863385,0.00387831,97335.0,97334.0,0.20998632]
[1735837863599,0.01608131,97342.0,97334.0,0.20998632]
[1735837863811,8.54e-05,97346.0,97345.0,0.1]
[1735837864032,8.54e-05,97346.0,97345.0,0.20398632]
[1735837864250,0.0039626,97346.0,97345.0,0.20398632]
[1735837864447,8.54e-05,97346.0,97345.0,0.20398632]
[1735837864649,8.54e-05,97346.0,97345.0,1.70398632]
[1735837865073,8.54e-05,97346.0,97345.0,1.85398632]
[1735837865287,8.54e-05,97346.0,97345.0,1.97678632]
[1735837865502,8.54e-05,97346.0,97345.0,1.99978632]
[1735837865914,8.54e-05,97346.0,97345.0,2.00878632]
[1735837866370,8.54e-05,97346.0,97345.0,2.10778632]
[1735837866960,8.54e-05,97346.0,97345.0,2.00878632]
[1735837867103,8.54e-05,97346.0,97345.0,1.99978632]
[1735837867307,8.54e-05,97346.0,97345.0,2.00078632]
[1735837867727,8.54e-05,97346.0,97345.0,1.97778632]
[1735837868132,8.54e-05,97346.0,97345.0,1.87878632]
[1735837868337,8.54e-05,97346.0,97345.0,2.29095132]
[1735837868534,8.54e-05,97346.0,97345.0,2.10078632]
[1735837868877,8.54e-05,97346.0,97345.0,2.34443932]
[1735837869671,8.54e-05,97346.0,97345.0,2.34343932]
[1735837870210,8.54e-05,97346.0,97345.0,2.09978632]
[1735837870627,8.54e-05,97346.0,97345.0,2.20012932]
[1735837870793,8.54e-05,97346.0,97345.0,2.09878632]
[1735837870994,8.54e-05,97346.0,97345.0,2.20823932]
[1735837871200,8.54e-05,97346.0,97345.0,2.20923932]
[1735837871528,8.54e-05,97346.0,97345.0,2.20823932]
[1735837871756,0.0010854,97346.0,97345.0,2.20923932]
[1735837871926,8.54e-05,97346.0,97345.0,2.20923932]
[1735837872281,0.0010854,97346.0,97345.0,2.21023932]
[1735837873557,0.0010854,97346.0,97345.0,2.31023932]
[1735837874543,8.54e-05,97346.0,97345.0,2.30823932]
[1735837874750,8.54e-05,97346.0,97345.0,2.30923932]
[1735837874957,0.0010854,97346.0,97345.0,2.31023932]
[1735837875182,8.54e-05,97346.0,97345.0,2.30923932]
[1735837875516,0.0010854,97346.0,97345.0,2.30923932]
[1735837875724,0.0010854,97346.0,97345.0,2.07878632]
[1735837875920,8.54e-05,97346.0,97345.0,2.10078632]
[1735837876135,8.54e-05,97346.0,97345.0,2.09978632]
[1735837876346,8.54e-05,97346.0,97345.0,2.23036732]
[1735837876527,7.602e-05,97362.0,97361.0,0.1]
[1735837876721,7.602e-05,97362.0,97361.0,0.20398632]
[1735837877929,0.00107602,97362.0,97361.0,0.20498632]
[1735837878143,0.00483674,97362.0,97361.0,0.20498632]
[1735837878555,0.00483674,97362.0,97361.0,0.20598632]
[1735837878781,0.00107602,97362.0,97361.0,0.20598632]
[1735837879015,0.00107602,97362.0,97361.0,1.70498632]
[1735837879381,0.00107602,97362.0,97361.0,0.20798632]
[1735837879761,0.00483674,97362.0,97361.0,0.104]
[1735837880194,0.00483674,97362.0,97361.0,0.103]
[1735837880195,0.00383674,97362.0,97361.0,0.103]
[1735837880595,0.00483674,97362.0,97361.0,0.11]
[1735837880860,0.00383674,97362.0,97361.0,0.103]
[1735837881236,0.00483674,97362.0,97361.0,0.107]
[1735837881465,0.00583674,97362.0,97361.0,0.112]
[1735837883336,0.00683674,97362.0,97361.0,0.012]
[1735837883536,0.08273674,97362.0,97361.0,0.012]
[1735837884522,0.08173674,97362.0,97361.0,0.005]
[1735837884732,0.08073674,97362.0,97349.0,0.1]
[1735837885044,0.205438,97353.0,97350.0,0.10398632]
[1735837885267,0.0037535,97352.0,97350.0,0.10398632]
[1735837886174,0.2091935,97352.0,97350.0,0.10398632]
[1735837886568,0.2091935,97352.0,97351.0,1.5]
[1735837887001,0.205442,97351.0,97337.0,0.1]
[1735837887201,0.205442,97351.0,97338.0,0.10398632]
[1735837887401,0.205456,97345.0,97339.0,1.5]
[1735837887646,0.00374929,97350.0,97341.0,0.205463]
[1735837887834,0.205433,97356.0,97347.0,0.1]
[1735837888033,0.20544,97353.0,97348.0,0.10398632]
[1735837888233,0.20544,97352.0,97348.0,0.10398632]
[1735837888593,0.205432,97356.0,97350.0,0.002]
[1735837888793,0.410864,97356.0,97351.0,0.10398632]
[1735837889164,0.20544,97352.0,97351.0,0.10398632]
[1735837889382,0.001,97358.0,97348.0,0.002]
[1735837889556,0.205442,97351.0,97348.0,1.60598632]
[1735837889921,0.205442,97351.0,97348.0,1.60398632]
[1735837890561,0.205442,97351.0,97348.0,1.60498632]
[1735837890994,0.00374936,97350.0,97348.0,1.60398632]
[1735837891165,0.205446,97349.0,97348.0,1.60498632]
[1735837891370,0.20919521,97349.0,97348.0,1.60498632]
[1735837892029,0.20919521,97349.0,97348.0,1.60598632]
[1735837892241,0.20919521,97349.0,97348.0,1.60798632]
[1735837892385,0.20919521,97349.0,97348.0,0.10598632]
[1735837892589,0.20919521,97349.0,97348.0,0.10398632]
[1735837893190,0.20919521,97349.0,97348.0,0.10598632]
[1735837894040,0.20919521,97349.0,97348.0,0.10798632]
[1735837896656,0.00374921,97349.0,97348.0,0.20798632]
[1735837897104,0.205439,97353.0,97348.0,0.20798632]
[1735837897306,0.205439,97353.0,97348.0,0.104]
[1735837897307,0.00343025,97349.0,97348.0,0.104]
[1735837897537,0.205439,97353.0,97348.0,0.20798632]
[1735837897749,0.205439,97353.0,97349.0,0.10398632]
[1735837897960,0.205439,97353.0,97348.0,0.20798632]
[1735837898163,0.205446,97349.0,97348.0,0.20598632]
[1735837898369,0.205446,97349.0,97348.0,0.103]
[1735837899103,0.205446,97349.0,97348.0,0.102]
[1735837899320,0.205446,97349.0,97348.0,0.1]
[1735837899497,0.001,97356.0,97348.0,0.1]
[1735837899498,0.206429,97357.0,97348.0,0.20598632]
[1735837899694,0.205429,97357.0,97349.0,0.10398632]
[1735837899958,0.205421,97361.0,97360.0,0.1]
[1735837900165,0.205421,97361.0,97360.0,0.20398632]
[1735837900413,0.205421,97361.0,97348.0,0.307447]
[1735837900621,0.205433,97355.0,97351.0,1.5]
[1735837900836,0.410867,97355.0,97352.0,0.10398632]
[1735837901040,0.205446,97349.0,97348.0,0.1]
[1735837901249,0.001,97347.0,97346.0,0.0001708]
[1735837901661,0.00511595,97347.0,97346.0,0.0001708]
[1735837902534,0.00511595,97347.0,97346.0,0.0031708]
[1735837902942,0.00511595,97347.0,97346.0,0.0061708]
[1735837903132,0.00411595,97347.0,97346.0,0.0061708]
[1735837903371,0.410893,97349.0,97348.0,0.1]
[1735837903664,0.00411595,97347.0,97346.0,0.0061708]
[1735837903795,0.411893,97349.0,97346.0,0.0061708]
[1735837903998,0.00411595,97347.0,97346.0,0.0061708]
[1735837904223,0.411893,97349.0,97346.0,0.0001708]
[1735837904438,0.00411595,97347.0,97346.0,0.0001708]
[1735837904639,0.206446,97349.0,97348.0,0.004]
[1735837904836,0.206446,97349.0,97348.0,0.002]
[1735837905090,0.206446,97349.0,97346.0,0.0001708]
[1735837905285,0.411893,97349.0,97346.0,0.0031708]
[1735837905602,0.411893,97349.0,97346.0,0.0021708]
[1735837905814,0.001,97347.0,97346.0,0.0021708]
[1735837906017,0.128,97347.0,97346.0,0.0021708]
[1735837907612,0.128,97347.0,97346.0,0.0001708]
[1735837907872,0.128,97347.0,97346.0,0.0031708]
[1735837908053,0.128,97347.0,97346.0,0.0061708]
[1735837908263,0.1321075,97347.0,97346.0,0.0061708]
[1735837909617,0.0833075,97347.0,97346.0,0.0061708]
[1735837910150,0.0783075,97347.0,97346.0,0.0061708]
[1735837912688,0.0783929,97347.0,97346.0,0.0061708]
[1735837913488,0.0773929,97347.0,97346.0,0.0061708]
[1735837913709,0.0051929,97347.0,97346.0,0.0061708]
[1735837913914,0.0041929,97347.0,97346.0,0.0061708]
[1735837914129,0.0041929,97347.0,97346.0,0.11015712]
[1735837914494,8.54e-05,97347.0,97346.0,0.11015712]
[1735837914691,8.54e-05,97347.0,97346.0,1.61015712]
[1735837915799,8.54e-05,97347.0,97346.0,1.68745712]
[1735837916540,8.54e-05,97347.0,97346.0,1.68445712]
[1735837916974,8.54e-05,97347.0,97346.0,1.68845712]
[1735837917173,8.54e-05,97347.0,97346.0,1.68445712]
[1735837917582,0.0010854,97347.0,97346.0,1.68945712]
[1735837917788,0.0010854,97347.0,97346.0,1.70164128]
[1735837917995,0.0010854,97347.0,97346.0,1.69364128]
[1735837918202,0.0100854,97347.0,97346.0,1.69464128]
[1735837918403,0.0090854,97347.0,97346.0,1.69264128]
[1735837918608,8.54e-05,97347.0,97346.0,1.69764128]
[1735837919671,8.54e-05,97347.0,97346.0,0.12034128]
[1735837919875,0.00442266,97347.0,97346.0,0.12934128]
[1735837920517,0.00442266,97347.0,97346.0,0.11315712]
[1735837920729,0.00342266,97347.0,97346.0,0.10415712]
[1735837920980,0.00442266,97347.0,97346.0,0.11815712]
[1735837921385,0.00342266,97347.0,97346.0,0.10915712]
[1735837921720,0.00442266,97347.0,97346.0,0.11815712]
[1735837921950,0.00442266,97347.0,97346.0,0.11315712]
[1735837922267,0.00775992,97347.0,97346.0,0.11915712]
[1735837922665,0.00442266,97347.0,97346.0,0.11915712]
[1735837922877,0.00442266,97347.0,97346.0,0.32460912]
[1735837923328,0.00442266,97347.0,97346.0,0.52240912]
[1735837923497,0.00342266,97347.0,97346.0,2.05610912]
[1735837923902,0.00442266,97347.0,97346.0,2.07010912]
[1735837924188,0.00442266,97347.0,97346.0,2.22010912]
[1735837924392,0.00442266,97347.0,97346.0,2.35540912]
[1735837924800,0.00442266,97347.0,97346.0,3.00170912]
[1735837925002,8.54e-05,97376.0,97361.0,0.685021]
[1735837925206,8.54e-05,97376.0,97361.0,0.81200732]
[1735837925804,8.54e-05,97376.0,97361.0,2.31200732]
[1735837926724,8.54e-05,97376.0,97361.0,2.21300732]
[1735837926918,8.54e-05,97376.0,97361.0,2.31200732]
[1735837927076,0.00607602,97362.0,97361.0,2.65351747]
[1735837927980,0.00607602,97362.0,97361.0,2.55451747]
[1735837928605,0.00607602,97362.0,97361.0,2.78483478]
[1735837929622,0.00607602,97362.0,97361.0,2.31300732]
[1735837929856,0.00607602,97362.0,97361.0,2.65201332]
[1735837930052,0.01307602,97362.0,97361.0,2.65301332]
[1735837930436,8.54e-05,97376.0,97374.0,0.655693]
[1735837930665,8.54e-05,97376.0,97374.0,0.80727932]
[1735837931115,8.54e-05,97376.0,97374.0,2.30727932]
[1735837931653,0.01313468,97375.0,97374.0,2.30927932]
[1735837932758,0.01313468,97375.0,97374.0,2.26567932]
[1735837932978,0.00713468,97375.0,97374.0,2.26467932]
[1735837933118,0.00013468,97375.0,97374.0,2.26367932]
[1735837933344,0.00013468,97375.0,97374.0,2.26467932]
[1735837934215,0.00013468,97375.0,97374.0,2.27413072]
[1735837934437,0.00013468,97375.0,97374.0,2.28313072]
[1735837934859,0.00013468,97375.0,97374.0,2.29013072]
[1735837936458,0.00013468,97375.0,97374.0,2.27413072]
[1735837936659,0.00013468,97375.0,97374.0,2.27513072]
[1735837936863,0.00013468,97375.0,97374.0,2.27613072]
[1735837938069,0.00013468,97375.0,97374.0,2.37613072]
[1735837938292,0.00013468,97375.0,97374.0,3.15750372]
[1735837938503,0.00013468,97375.0,97374.0,2.99873572]
[1735837938708,0.00013468,97375.0,97374.0,3.04583572]
[1735837939129,0.000171,97384.0,97383.0,0.782274]
[1735837939339,8.55e-05,97397.0,97396.0,0.549]
[1735837939543,0.00013457,97397.0,97396.0,1.58003832]
[1735837939742,0.00013457,97397.0,97396.0,2.99199032]
[1735837940099,0.00013457,97397.0,97396.0,2.95788032]
[1735837940301,0.00013457,97397.0,97396.0,3.52439652]
[1735837940752,0.00013457,97397.0,97396.0,3.52539652]
[1735837940983,0.00013457,97397.0,97396.0,3.21481152]
[1735837941115,0.00013457,97397.0,97396.0,3.10231652]
[1735837941310,0.00013457,97397.0,97396.0,3.10131652]
[1735837941519,0.00013457,97397.0,97396.0,3.19396704]
[1735837941941,0.206261,97437.0,97435.0,0.1]
[1735837942172,0.20640826,97437.0,97436.0,0.10398632]
[1735837942758,0.001,97436.0,97435.0,0.1]
[1735837943342,0.001,97436.0,97424.0,0.1]
[1735837943343,0.205286,97425.0,97424.0,0.1]
[1735837943622,0.283686,97425.0,97424.0,0.1]
[1735837944400,0.283686,97425.0,97400.0,1.5]
[1735837944401,0.0784,97425.0,97411.0,0.1]
[1735837944597,0.205308,97415.0,97412.0,0.10398632]
[1735837945648,0.205303,97417.0,97412.0,0.10398632]
[1735837946244,0.001,97426.0,97421.0,0.1]
[1735837946447,0.0827,97432.0,97422.0,0.10398632]
[1735837946644,0.0817,97432.0,97431.0,0.1]
[1735837946851,0.0836,97442.0,97431.0,1.70398632]
[1735837947024,4e-05,97450.0,97431.0,1.70398632]
[1735837947025,0.205275,97450.0,97432.0,0.10398632]
[1735837947225,0.205275,97450.0,97435.0,0.205263]
[1735837947430,0.205275,97450.0,97436.0,0.10398632]
[1735837947730,0.206242,97446.0,97436.0,0.10398632]
[1735837947905,0.205275,97450.0,97436.0,0.10398632]
[1735837948107,4e-05,97450.0,97436.0,0.12698632]
[1735837949138,4e-05,97450.0,97436.0,0.10398632]
[1735837949139,0.00023276,97437.0,97436.0,0.10398632]
[1735837949354,0.00023276,97437.0,97436.0,0.11454786]
[1735837949558,0.00023276,97437.0,97436.0,1.61454786]
[1735837949765,0.00023276,97437.0,97436.0,1.62354786]
[1735837950346,0.00023276,97437.0,97436.0,0.12654786]
[1735837950549,0.01189658,97437.0,97436.0,0.10698632]
[1735837950769,0.01189658,97437.0,97436.0,0.11598632]
[1735837951005,0.01289658,97437.0,97436.0,0.11298632]
[1735837951235,0.01189658,97437.0,97436.0,0.11298632]
[1735837951453,0.01289658,97437.0,97436.0,0.11698632]
[1735837952703,0.01289658,97437.0,97436.0,0.10798632]
[1735837953260,0.01289658,97437.0,97436.0,0.11498632]
[1735837953498,0.01189658,97437.0,97436.0,0.11498632]
[1735837953916,0.00023276,97437.0,97436.0,0.11498632]
[1735837954340,0.01188073,97437.0,97436.0,0.11498632]
[1735837954482,0.00023276,97437.0,97436.0,0.11498632]
[1735837955107,0.20549276,97437.0,97436.0,0.011]
[1735837955331,0.01187931,97437.0,97436.0,0.011]
[1735837955948,0.01287931,97437.0,97436.0,0.011]
[1735837956383,0.01287931,97437.0,97436.0,0.11498632]
[1735837956675,0.01187931,97437.0,97436.0,0.11498632]
[1735837957243,0.00023276,97437.0,97436.0,0.11498632]
[1735837957444,0.00023276,97437.0,97436.0,0.13798632]
[1735837957680,0.00023276,97437.0,97436.0,1.63798632]
[1735837960650,8.54e-05,97444.0,97443.0,0.1]
[1735837960890,0.00013445,97444.0,97443.0,0.20398632]
[1735837963033,0.00013445,97444.0,97443.0,0.20698632]
[1735837963352,0.00013445,97444.0,97443.0,0.21098632]
[1735837963723,0.00013445,97444.0,97443.0,0.22153134]
[1735837964305,0.00013445,97444.0,97443.0,1.72153134]
[1735837965932,0.00013445,97444.0,97443.0,1.71753134]
[1735837966130,0.00013445,97444.0,97443.0,1.71453134]
[1735837966356,0.00013445,97444.0,97443.0,1.72053134]
[1735837966553,0.00013445,97444.0,97443.0,1.72453134]
[1735837967588,0.00013445,97444.0,97443.0,1.74753134]
[1735837967991,0.00013445,97444.0,97443.0,1.89753134]
[1735837968226,0.00013445,97444.0,97443.0,1.97403134]
[1735837969051,0.00013445,97444.0,97443.0,1.96803134]
[1735837969245,0.00013445,97444.0,97443.0,1.96403134]
[1735837969448,0.00013445,97444.0,97443.0,1.97303134]
[1735837969655,0.00013445,97444.0,97443.0,1.97003134]
[1735837970050,0.00013445,97444.0,97443.0,1.88853134]
[1735837970240,0.00013445,97444.0,97443.0,1.88753134]
[1735837970420,0.00013445,97444.0,97443.0,1.88853134]
[1735837970620,0.00013445,97444.0,97443.0,1.88953134]
[1735837970832,0.00013445,97444.0,97443.0,1.88853134]
[1735837971059,0.00013445,97444.0,97443.0,1.71553134]
[1735837971315,0.00013445,97444.0,97443.0,0.21653134]
[1735837972312,0.00013445,97444.0,97443.0,0.21553134]
[1735837972723,0.00013445,97444.0,97443.0,1.71553134]
[1735837972927,0.00013445,97444.0,97443.0,1.71653134]
[1735837973079,0.00013445,97444.0,97443.0,1.71553134]
[1735837973282,0.00013445,97444.0,97443.0,1.71453134]
[1735837973483,0.00013445,97444.0,97443.0,1.72053134]
[1735837973684,0.00013445,97444.0,97443.0,1.72953134]
[1735837977236,0.00013445,97444.0,97443.0,1.90253134]
[1735837977699,0.00013445,97444.0,97443.0,2.08473134]
[1735837978055,0.00013445,97444.0,97443.0,2.31712634]
[1735837978278,0.00013445,97444.0,97443.0,2.32123334]
[1735837978848,0.00013445,97444.0,97443.0,2.31523334]
[1735837979152,0.00813445,97444.0,97443.0,2.30723334]
[1735837979351,0.01613445,97444.0,97443.0,2.28776234]
[1735837979578,0.00813445,97444.0,97443.0,2.85525675]
[1735837979799,0.00013445,97444.0,97443.0,2.85425675]
[1735837979993,0.205159,97485.0,97478.0,0.1]
[1735837980169,0.205165,97483.0,97479.0,0.10398632]
[1735837980402,0.20564994,97485.0,97479.0,0.10398632]
[1735837980742,0.00049094,97485.0,97479.0,0.10398632]
[1735837982523,0.00149094,97485.0,97479.0,0.10398632]
[1735837982941,0.00149094,97485.0,97479.0,0.10498632]
[1735837983175,0.20665194,97485.0,97479.0,0.10498632]
[1735837983380,0.01605829,97484.0,97479.0,0.10498632]
[1735837983809,0.01605829,97484.0,97479.0,0.10398632]
[1735837984015,0.01605829,97484.0,97479.0,0.10798632]
[1735837984626,0.00049094,97485.0,97479.0,0.10798632]
[1735837985409,0.00049094,97485.0,97483.0,0.205162]
[1735837986054,0.00049094,97485.0,97484.0,1.673]
[1735837986261,0.00049094,97485.0,97484.0,2.0382]
[1735837986459,0.00049094,97485.0,97484.0,2.714473]
[1735837987322,0.00849094,97485.0,97484.0,3.261773]
[1735837987525,4e-07,97495.0,97494.0,0.65514]
[1735837987726,0.00014756,97495.0,97494.0,0.75854]
[1735837987907,0.00014756,97495.0,97494.0,0.85854]
[1735837988104,0.00539209,97500.0,97499.0,0.8963]
[1735837988309,0.00539209,97500.0,97499.0,1.607824]
[1735837988473,0.00539209,97500.0,97499.0,1.36689]
[1735837988876,0.00539209,97500.0,97499.0,1.312217]
[1735837989323,0.00539209,97500.0,97499.0,1.41620332]
[1735837989730,0.00539209,97500.0,97499.0,2.91620332]
[1735837990137,0.0806,97542.0,97522.0,0.305081]
[1735837990294,0.0806,97542.0,97522.0,0.58206732]
[1735837990497,0.204937,97591.0,97522.0,0.58206732]
[1735837990498,0.01604903,97532.0,97522.0,0.58206732]
[1735837990890,0.281115,97554.0,97522.0,0.68206732]
[1735837991499,0.0755,97570.0,97522.0,1.22836732]
[1735837991709,0.0755,97570.0,97533.0,0.655058]
[1735837991950,0.0002171,97534.0,97533.0,3.43975332]
[1735837992186,0.0002171,97534.0,97533.0,3.20683532]
[1735837992364,0.0002171,97534.0,97533.0,3.05341132]
[1735837992558,0.0002171,97534.0,97533.0,3.25152932]
[1735837992948,0.0002171,97534.0,97533.0,3.27452932]
[1735837993150,0.0002171,97534.0,97533.0,3.27552932]
[1735837993378,0.0755,97570.0,97549.0,0.305025]
[1735837993578,0.204987,97567.0,97549.0,0.43201132]
[1735837994053,0.204987,97567.0,97549.0,1.93201132]
[1735837994753,0.20493575,97567.0,97566.0,0.1]
[1735837994979,0.21294101,97567.0,97566.0,0.20398632]
[1735837995582,0.21294101,97567.0,97566.0,0.43197532]
[1735837995583,0.00800526,97567.0,97566.0,0.43197532]
[1735837995776,0.00014705,97567.0,97566.0,0.43197532]
[1735837996485,0.00014705,97567.0,97566.0,0.43597532]
[1735837996674,0.00014705,97567.0,97566.0,0.43897532]
[1735837997060,0.00014705,97567.0,97566.0,1.93897532]
[1735837997213,0.00014705,97567.0,97566.0,1.71741141]
[1735837997414,0.00014705,97567.0,97566.0,0.21441141]
[1735837997622,0.00014705,97567.0,97566.0,0.23741141]
[1735837997819,0.00014705,97567.0,97566.0,0.24641141]
[1735837998025,0.00014705,97567.0,97566.0,0.23741141]
[1735837998635,0.00014705,97567.0,97566.0,0.38841141]
[1735837999152,0.00014705,97567.0,97566.0,0.38741141]
[1735837999321,0.00014705,97567.0,97566.0,0.39441141]
[1735837999528,0.00014705,97567.0,97566.0,1.89441141]
[1735838000085,0.00014705,97567.0,97566.0,1.90341141]
[1735838000301,0.00014705,97567.0,97566.0,1.89441141]
[1735838000506,0.00014705,97567.0,97566.0,1.90341141]
[1735838001179,0.00014705,97567.0,97566.0,2.03667041]
[1735838001315,0.00014705,97567.0,97566.0,2.12823441]
[1735838001521,0.00014705,97567.0,97566.0,1.89851341]
[1735838002074,0.000102,97582.0,97581.0,0.1]
[1735838002296,0.000102,97582.0,97581.0,0.20398632]
[1735838002678,0.00772723,97582.0,97581.0,1.70398632]
[1735838002910,0.000102,97582.0,97581.0,1.70398632]
[1735838003256,0.000102,97582.0,97581.0,1.70998632]
[1735838003461,0.000102,97582.0,97581.0,1.71398632]
[1735838003680,0.000102,97582.0,97581.0,1.70398632]
[1735838003886,0.000102,97582.0,97581.0,1.70698632]
[1735838004323,0.000102,97582.0,97581.0,1.70398632]
[1735838004533,0.00647369,97582.0,97581.0,1.70398632]